Cogmind - Beta 13 @@@ ROGUE MODE // 2024.08.02 @ 23:29:56 Player: Zaros426 Result: Destroyed by H-61 Shepherd with Heavy Assault Cannon Performance ------------- Evolutions (2) 1000 Regions Visited (7) 1400 Robots Destroyed (139) 695 Value Destroyed (4990) 4990 Prototype IDs (9) 180 Alien Tech Used (0) 0 Bonus (1878) 1878 TOTAL SCORE: 10143 Bonus ------- High Alert Combat Kills 1138 Follower Combat Kills 40 Entered Garrisons 200 Used RIF Installer 500 Cogmind --------- Core Integrity 0/550 Matter 71/300 Energy 315/315 System Corruption 7% Temperature Cool (0) Movement Treading (237) Ox1 Location -8/Materials Parts ------- > --- POWER (1) -------- Neutrino Core > --- PROPULSION (3) --- Advanced Treads Armored Medium Treads > --- UTILITY (4) ------ Large Storage Unit Hardened Heavy Armor Plating Improved Medium Armor Plating > --- WEAPON (3) ------- Assault Cannon Heavy Missile Launcher Heavy Flail > --- INVENTORY (15) --- Structural Scanner Hardened Heavy Armor Plating Hardened Heavy Armor Plating Relay Coupler [Grunt] (22) Relay Coupler [Duelist] (26) Relay Coupler [Hunter] (16) Sensor Drone Bay (20/20) Improved Plasma Cutter Peak State ------------ > --- POWER ------------ Neutrino Core > --- PROPULSION ------- Advanced Treads Advanced Treads Armored Medium Treads > --- UTILITY ---------- Large Storage Unit Hardened Heavy Armor Plating Improved Medium Armor Plating > --- WEAPON ----------- KE Penetrator Mass Driver Heavy Flail > --- INVENTORY -------- Structural Scanner Hardened Heavy Armor Plating Hardened Heavy Armor Plating Hardened Heavy Armor Plating Improved Medium Armor Plating Relay Coupler [Grunt] Relay Coupler [Duelist] Relay Coupler [Hunter] Sensor Drone Bay Heavy Missile Launcher Heavy Missile Launcher Improved Plasma Cutter [Rating: 52] Favorites ----------- Power Ion Engine Engine Ion Engine Power Core Neutrino Core Propulsion Advanced Treads Treads Advanced Treads Leg Carbon-fiber Leg Utility Large Storage Unit Device Structural Scanner Storage Large Storage Unit Processor Signal Interpreter Protection Improved Light Armor Plating Weapon Autogun Energy Gun Improved EM Shotgun Ballistic Gun Autogun Ballistic Cannon Mass Driver Launcher Mini Grenade Launcher Special Weapon Improved Plasma Cutter Impact Weapon Heavy Flail Build | -11 -10 -10 -10 -9 -8 -8 -8 ------- Run | Yrd Mat Min Exi Min Mat Gar Mat Slots Evolved 4 | . . . . . 4 . . Power . | . . . . . . . . Propulsion 1 | . . . . . 1 . . Utility 2 | . . . . . 2 . . Weapon 1 | . . . . . 1 . . Parts Attached 126 | 6 14 5 . 19 26 45 11 Power 11 | 1 1 1 . 1 2 5 . Engine 8 | 1 1 1 . 1 2 2 . Core 3 | . . . . . . 3 . Reactor . | . . . . . . . . Propulsion 22 | 2 3 1 . 4 6 5 1 Treads 20 | 2 3 1 . 2 6 5 1 Leg 2 | . . . . 2 . . . Wheel . | . . . . . . . . Hover . | . . . . . . . . Flight . | . . . . . . . . Utility 43 | 2 1 1 . 3 10 21 5 Device 21 | 1 . 1 . 3 4 11 1 Storage 4 | 1 1 . . . 1 . 1 Processor 1 | . . . . . . 1 . Hackware . | . . . . . . . . Protection 17 | . . . . . 5 9 3 Artifact . | . . . . . . . . Weapon 50 | 1 9 2 . 11 8 14 5 Energy Gun 17 | 1 6 . . 7 2 1 . Energy Cannon . | . . . . . . . . Ballistic Gun 13 | . 3 2 . 2 3 3 . Ballistic Cannon 4 | . . . . . . 3 1 Launcher 9 | . . . . 2 . 5 2 Special Weapon 1 | . . . . . . . 1 Impact Weapon 6 | . . . . . 3 2 1 Slashing Weapon . | . . . . . . . . Piercing Weapon . | . . . . . . . . Special Melee Weapon . | . . . . . . . . Unidentified Prototypes 1 | . . . . 1 . . . Parts Lost 26 | . 1 . . 6 1 11 7 Power 3 | . . . . 1 . 2 . Propulsion 6 | . . . . 3 . 2 1 Utility 7 | . . . . . . 5 2 Weapon 10 | . 1 . . 2 1 2 4 Highest Loss Streak 6 | . 1 . . 6 1 6 3 To Critical Strikes . | . . . . . . . . Average Slot Usage (%) 97 | . 98 100 100 97 99 95 87 Engine 8 | . 14 14 14 14 9 2 . Core 2 | . . . . . . 6 9 Treads 24 | . 27 28 28 8 23 26 26 Leg 2 | . . . . 19 3 . . Device 11 | . 14 14 14 13 14 7 4 Storage 11 | . 14 14 14 14 9 9 9 Protection 7 | . . . . . 12 15 13 Energy Gun 6 | . 22 4 . 6 5 1 . Ballistic Gun 12 | . 4 23 28 20 20 6 6 Ballistic Cannon 2 | . . . . . . 6 6 Launcher 1 | . . . . 1 . 3 4 Impact Weapon 3 | . . . . . 1 8 6 Naked Turns . | . . . . . . . . Heaviest Build 80 | 13 32 32 32 32 52 78 80 Greatest Support 71 | 40 40 40 40 42 66 69 71 Greatest Overweight (x) 2 | . . 1 . 2 1 1 1 Average Overweight (x) . | . . . . . . . . Largest Inventory Capacity 15 | 8 15 15 15 15 15 15 15 Average Capacity 14 | 7 14 15 15 15 15 15 15 Most Carried 15 | 5 15 15 15 15 15 15 15 Average Carried 13 | 2 11 14 15 12 14 14 14 Final Capacity 15 | 8 15 15 15 15 15 15 15 Final Carried 15 | 4 15 15 15 13 14 15 10 Class Distribution -------------------- 74% | Mutant 12% | Scavenger-Mutant 8% | Tank 3% | Scavenger-Tank Dominant Class ---------------- Mutant | -10/Materials Mutant | -10/Mines Mutant | -10/Exiles Scavenger-Mutant | -9/Mines Tank | -8/Materials Mutant | -8/Garrison Mutant | -8/Materials Resources | -11 -10 -10 -10 -9 -8 -8 -8 ----------- Run | Yrd Mat Min Exi Min Mat Gar Mat Matter Collected 3212 | 241 279 154 . 388 874 869 407 Remotely . | . . . . . . . . Salvage Created 4786 | 78 774 395 . 209 1298 1255 777 Parts 239 | 13 56 20 . 10 76 50 14 Haulers Intercepted 4 | . . . . . 2 . 2 Recyclers Shooed 3 | . . . . 1 1 . 1 Parts Field Recycled . | . . . . . . . . Retrieved Matter . | . . . . . . . . Parts Self-Destructed . | . . . . . . . . Prevented . | . . . . . . . . Kills | -11 -10 -10 -10 -9 -8 -8 -8 ------- Run | Yrd Mat Min Exi Min Mat Gar Mat Combat Hostiles Destroyed 108 | . 18 10 . 12 19 33 16 Melee 11 | . . . . . . 9 2 Guns 53 | . 16 10 . 4 17 6 . Cannons 6 | . . . . . . 3 3 AOE 27 | . 2 . . 8 2 10 5 Classes Destroyed 16 | 1 6 . . 2 3 1 3 Worker 10 | . 1 1 . . 2 . 6 Builder 8 | . 3 . . . 4 . 1 Tunneler 5 | 4 . . . 1 . . . Hauler 4 | . . . . . 2 . 2 Recycler 4 | . 1 . . 1 1 . 1 Mechanic 2 | . . . . . . . 2 Operator 1 | . . . . . . . 1 Watcher 6 | . 3 . . . 2 . 1 Swarmer 18 | . 6 4 . . 3 5 . Grunt 53 | . 12 6 . 1 6 15 13 Brawler 1 | . . . . . . 1 . Duelist 1 | . . . . . . . 1 Sentry 16 | . . . . . 8 6 2 Demolisher 2 | . . . . 2 . . . Hunter 8 | . . . . . 2 6 . Assembled 9 | . . . . 9 . . . Best Kill Streak 9 | 2 7 3 . 8 9 5 8 Combat Bots Only 8 | . 5 3 . 8 4 5 4 Max Kills in Single Turn 4 | 1 4 2 . 4 2 4 2 Gunslinging 1 | . . 1 . . . . . Exploded 4 | . 1 . . 4 1 4 2 Melee 1 | . . . . . . 1 1 Uniques/NPCs Destroyed . | . . . . . . . . Combat | -11 -10 -10 -10 -9 -8 -8 -8 -------- Run | Yrd Mat Min Exi Min Mat Gar Mat Hostile Shots Fired 545 | . 51 28 . 29 95 235 107 Missed 133 | . 11 8 . 7 27 51 29 Damage Taken 6442 | . 457 252 . 910 732 2755 1336 Core 819 | . 31 55 . 153 132 348 100 Absorbed by Shields 340 | . . . . . 168 172 . Ignored by Resistances 25 | . . . . . . 25 . Regen/Repaired (Parts) 47 | . 47 . . . . . . Core Remaining (%) 52 | 100 . . . 4 . . . Volleys Fired 263 | 12 46 21 . 23 73 65 23 Largest 3 | 1 2 2 . 2 3 3 3 Hottest 122 | 50 100 90 . 60 91 90 122 Shots Fired 502 | 12 90 42 . 41 186 101 30 Gun 422 | 12 90 42 . 27 186 61 4 Cannon 33 | . . . . . . 22 11 Launcher 47 | . . . . 14 . 18 15 Special . | . . . . . . . . Kinetic 317 | . 30 26 . 22 158 66 15 Thermal 40 | 12 28 . . . . . . Explosive 47 | . . . . 14 . 18 15 Electromagnetic 98 | . 32 16 . 5 28 17 . Robot Hit Streak 10 | 8 9 9 . 4 10 9 7 Robot Miss Streak 6 | 1 5 5 . 2 6 5 2 Penetration Max . | . . . . . . . . Secondary Targets 5 | . 1 1 . . 3 . . Max Gunslinging Chain 1 | . 1 1 . . 1 . . Shots Hit Robots 384 | 11 63 30 . 16 112 98 54 Core Hits 215 | 4 37 17 . 28 58 45 26 Critical Kills 1 | . . . . . . 1 . Critical Parts Destroyed 15 | . . . . . . 10 5 Critical Strikes 20 | . 1 . . . . 13 6 Burn 1 | . 1 . . . . . . Destroy 1 | . . . . . . 1 . Blast 2 | . . . . . . 1 1 Smash 16 | . . . . . . 11 5 Melee Attacks 131 | . . . . . 4 77 50 Impact 131 | . . . . . 4 77 50 Slashing . | . . . . . . . . Piercing . | . . . . . . . . Sneak Attacks 9 | . . . . . 1 2 6 Combat Hostiles 2 | . . . . . . 2 . Follow-up Attacks . | . . . . . . . . Damage Inflicted 12945 | 137 1198 555 . 901 1884 4539 3731 Guns 3986 | 137 952 496 . 251 1574 526 50 Cannons 764 | . . . . . . 470 294 Explosions 4284 | . 246 59 . 650 254 1527 1548 Melee 3911 | . . . . . 56 2016 1839 Ramming . | . . . . . . . . Kinetic 3217 | . 353 238 . 203 1227 852 344 Thermal 895 | 137 445 59 . . 254 . . Explosive 3725 | . . . . 650 . 1527 1548 Electromagnetic 1197 | . 400 258 . 48 347 144 . Impact 3911 | . . . . . 56 2016 1839 Slashing . | . . . . . . . . Piercing . | . . . . . . . . Highest Corruption 7 | . . . . . . 6 7 Average Corruption 6 | . . . . . . 5 6 Corruption Purged . | . . . . . . . . Corruption Blocked . | . . . . . . . . Effects 106 | . . . . . . 79 27 Message Errors 26 | . . . . . . 21 5 Matter Fused 28 | . . . . . . 22 6 Heat Flow Errors 13 | . . . . . . 10 3 Energy Discharges 11 | . . . . . . 7 4 Data Loss (minor) 9 | . . . . . . 6 3 Data Loss (major) 6 | . . . . . . 4 2 Misfires 3 | . . . . . . 2 1 Alerts 6 | . . . . . . 5 1 Weapon Failures 4 | . . . . . . 2 2 Overload Shots . | . . . . . . . . Overflow Damage 1739 | . . . . 50 36 828 825 Projectiles 29 | . . . . . . 29 . Explosions 195 | . . . . 50 . 7 138 Melee 1515 | . . . . . 36 792 687 Knockbacks 16 | . . . . . 1 7 8 Impact 12 | . . . . . 1 5 6 Kinetic 3 | . . . . . . 2 1 Secondary 1 | . . . . . . . 1 Self-Inflicted Damage 394 | . 37 28 . 53 11 184 81 Shots 19 | . 1 1 . 2 1 11 3 Rammed . | . . . . . . . . Targets Rammed . | . . . . . . . . Kicked . | . . . . . . . . Crushed . | . . . . . . . . Highest Temperature 365 | 40 168 198 . 8 140 365 352 Average Temperature 78 | 16 46 53 . 4 43 111 107 Received Heat Transfer 2081 | . 165 90 . . 188 990 648 Effects 6 | . . . . . . 3 3 Shutdowns 1 | . . . . . . 1 . Energy Bleed 3 | . . . . . . 2 1 Interference 2 | . . . . . . . 2 Siege Activations . | . . . . . . . . Robots Corrupted 1 | . . . . . . 1 . Combat Hostiles 1 | . . . . . . 1 . Parts Fried 18 | . . 1 . . 2 6 9 Impact Corruptions 43 | . . . . . 2 18 23 Robots Melted . | . . . . . . . . Combat Hostiles . | . . . . . . . . Parts Melted 1 | 1 . . . . . . . Heat Transferred 1623 | 407 916 100 . . 200 . . Parts Sabotaged . | . . . . . . . . Parts Stolen . | . . . . . . . . Parts Stripped . | . . . . . . . . Power Chain Reactions 7 | . 3 1 . . 3 . . Alert | -11 -10 -10 -10 -9 -8 -8 -8 ------- Run | Yrd Mat Min Exi Min Mat Gar Mat Peak Influence 2334 | 20 376 259 . 78 354 2334 1656 Initial 1137 | . 13 113 . . . 228 1137 Average 592 | 5 141 143 . 13 157 1209 1351 Maximum Alert Level 5 | . 1 1 . . 1 5 5 Low Security (%) 42 | 100 63 71 . 100 60 . . Level 1 17 | . 36 28 . . 39 7 . Level 2 5 | . . . . . . 15 . Level 3 10 | . . . . . . 30 . Level 4 13 | . . . . . . 16 93 Level 5 10 | . . . . . . 30 6 High Security . | . . . . . . . . Max Security . | . . . . . . . . Squads Dispatched 15 | . 6 . . . 5 . 4 Investigation 6 | . 5 . . . 1 . . Extermination . | . . . . . . . . Reinforcement 7 | . 1 . . . 3 . 3 Assault 1 | . . . . . . . 1 Garrison 1 | . . . . . 1 . . Intercept . | . . . . . . . . Searches Triggered . | . . . . . . . . Construction Impeded 3 | . . . . . 2 . 1 Haulers Reinforced . | . . . . . . . . Active Scanning Responses . | . . . . . . . . Cargo Convoy Interrupts . | . . . . . . . . Stealth | -11 -10 -10 -10 -9 -8 -8 -8 --------- Run | Yrd Mat Min Exi Min Mat Gar Mat Distress Signals 3 | . . . . . 2 . 1 Communications Jammed . | . . . . . . . . Distress Signals . | . . . . . . . . Times Spotted 138 | . 25 9 . 12 28 37 27 Peak Tracking Total 8 | . 5 2 . 8 4 5 6 Tactical Retreats 2 | . . . . . 1 1 . Traps | -11 -10 -10 -10 -9 -8 -8 -8 ------- Run | Yrd Mat Min Exi Min Mat Gar Mat Traps Triggered 7 | . 3 1 . . . 2 1 Indirectly . | . . . . . . . . Trap Hack Attempts . | . . . . . . . . Triggered . | . . . . . . . . Disarmed . | . . . . . . . . Reprogrammed . | . . . . . . . . Reused . | . . . . . . . . Traps Extracted . | . . . . . . . . Installed . | . . . . . . . . Triggered . | . . . . . . . . Machines | -11 -10 -10 -10 -9 -8 -8 -8 ---------- Run | Yrd Mat Min Exi Min Mat Gar Mat Machines Disabled 13 | . 1 . . . 2 5 5 Max in Single Turn 1 | . 1 . . . 1 1 1 Garrison Relay 4 | . . . . . . 4 . Machines Repaired . | . . . . . . . . Machines Dismantled . | . . . . . . . . Machines Sabotaged . | . . . . . . . . Overloaded Fab Kills . | . . . . . . . . Hacking | -11 -10 -10 -10 -9 -8 -8 -8 --------- Run | Yrd Mat Min Exi Min Mat Gar Mat Machines Accessed 29 | . 11 2 4 . 7 3 2 Terminals 16 | . 8 . . . 4 3 1 Fabricators . | . . . . . . . . Repair Stations 1 | . 1 . . . . . . Recycling Units 2 | . 2 . . . . . . Scanalyzers 3 | . . . . . 2 . 1 Garrison Access 1 | . . . . . 1 . . Total Hacks 76 | . 32 2 4 . 27 5 6 Successful 49 | . 16 2 4 . 21 2 4 Failed 26 | . 15 . . . 6 3 2 Catastrophic 3 | . 2 . . . 1 . . Database Lockouts 1 | . 1 . . . . . . Manual 17 | . 15 . . . 1 . 1 Terminals 46 | . 25 . . . 12 5 4 Fabricators . | . . . . . . . . Repair Stations 5 | . 5 . . . . . . Recycling Units 2 | . 2 . . . . . . Scanalyzers 16 | . . . . . 14 . 2 Garrison Access 1 | . . . . . 1 . . Terminal Hacks 25 | . 9 2 4 . 6 2 2 Record 6 | . . . 4 . 2 . . Robot Analysis 2 | . 2 . . . . . . Prototype ID Bank 5 | . 4 . . . 1 . . Open Door 3 | . . 2 . . . 1 . Branch Access Points 1 | . . . . . . . 1 Emergency Access Points 2 | . 1 . . . . . 1 Alert Level 1 | . . . . . 1 . . Dispatch Records 3 | . 2 . . . 1 . . Transport Status 1 | . . . . . 1 . . Garrison Registry 1 | . . . . . . 1 . Fabricator Hacks . | . . . . . . . . Repair Station Hacks 4 | . 4 . . . . . . Scan Component 3 | . 3 . . . . . . Repair 1 | . 1 . . . . . . Recycling Unit Hacks . | . . . . . . . . Scanalyzer 15 | . . . . . 13 . 2 Insert Component 8 | . . . . . 7 . 1 Analyze 7 | . . . . . 6 . 1 Garrison Access Hacks 1 | . . . . . 1 . . Unlock Access 1 | . . . . . 1 . . Unauthorized Hacks 4 | . 3 . . . 1 . . Terminals 2 | . 1 . . . 1 . . Botnet 2 | . 1 . . . 1 . . Fabricators . | . . . . . . . . Repair Stations . | . . . . . . . . Recycling Units 2 | . 2 . . . . . . Tunnel 2 | . 2 . . . . . . Scanalyzers . | . . . . . . . . Garrison Access . | . . . . . . . . Data Cores Recovered . | . . . . . . . . Used . | . . . . . . . . Hacking Detections 18 | . 8 . . . 6 2 2 Full Trace Events 4 | . 3 . . . 1 . . Feedback Events . | . . . . . . . . Feedback Blocked . | . . . . . . . . Robot Schematics Acquired . | . . . . . . . . Robots Built . | . . . . . . . . Authchips . | . . . . . . . . Time . | . . . . . . . . Total Robot Build Rating . | . . . . . . . . Part Schematics Acquired 6 | . . . . . 5 . 1 Parts Built . | . . . . . . . . Authchips . | . . . . . . . . Time . | . . . . . . . . Total Part Build Rating . | . . . . . . . . Parts Repaired 1 | . 1 . . . . . . Time 32 | . 32 . . . . . . Parts Recycled . | . . . . . . . . Recycled Matter . | . . . . . . . . Retrieved Matter . | . . . . . . . . Retrieved Components . | . . . . . . . . Parts Scanalyzed 6 | . . . . . 5 . 1 Part Schematics Acquired 6 | . . . . . 5 . 1 Parts Damaged . | . . . . . . . . Bothacking | -11 -10 -10 -10 -9 -8 -8 -8 ------------ Run | Yrd Mat Min Exi Min Mat Gar Mat Used RIF Installer 1 | . . . . . . 1 . Robots Hacked . | . . . . . . . . Non-combat . | . . . . . . . . Combat . | . . . . . . . . Robot Hacks Applied . | . . . . . . . . Relay Couplers Released 15 | . . . . . . 15 . Machine Destruction 15 | . . . . . . 15 . Fabnet Peak Effective % . | . . . . . . . . Robots Rewired 4 | . . . . . . 4 . Allies Hacked . | . . . . . . . . Hacks Repelled . | . . . . . . . . Allies | -11 -10 -10 -10 -9 -8 -8 -8 -------- Run | Yrd Mat Min Exi Min Mat Gar Mat Total Allies 5 | . . . . 1 . 4 . Largest Group 3 | . . . . 1 . 3 3 Highest-Rated Group 79 | . . . . 31 . 79 79 Highest-Rated Ally 39 | . . . . 31 . 39 39 Total Orders 1 | . . . . . . 1 . EXPLORE 1 | . . . . . . 1 . Ally Attacks 12 | . . . . . . 1 11 Total Damage 790 | . . . . . . 16 774 Kills 3 | . . . . . . . 3 Allies Corrupted . | . . . . . . . . Allies Melted . | . . . . . . . . Intel | -11 -10 -10 -10 -9 -8 -8 -8 ------- Run | Yrd Mat Min Exi Min Mat Gar Mat Robot Analysis Total 2 | . 2 . . . . . . Derelict Logs Recovered 4 | . . 2 . 2 . . . Drone Launches 1 | . . . . . . 1 . Drone Recoveries 1 | . . . . . . 1 . Exploration | -11 -10 -10 -10 -9 -8 -8 -8 ------------- Run | Yrd Mat Min Exi Min Mat Gar Mat Turns Passed 10248 | 135 1731 1011 818 1228 1306 3235 784 Spaces Moved 5167 | 63 893 577 512 622 599 1651 250 Core 2 | 2 . . . . . . . Treads 4661 | 61 893 577 512 197 520 1651 250 Legs 504 | . . . . 425 79 . . Wheels . | . . . . . . . . Hover . | . . . . . . . . Flight . | . . . . . . . . Fastest Speed 50 | 50 160 160 160 152 145 145 153 Average Speed 166 | 156 160 160 160 183 155 162 229 Slowest Speed 260 | 160 160 240 160 260 190 238 238 Overloaded Moves . | . . . . . . . . Propulsion Burnouts . | . . . . . . . . Robots Hopped . | . . . . . . . . Cave-ins Triggered . | . . . . . . . . Exploration Rate (%) 71 | 5 99 96 93 100 56 94 30 Regions Visited 7 Branch Regions 3 Pre-discovered Areas 2 | . 2 . . . . . . Known Exits Taken 1 | . . . . . 1 . . Unknown Exits Taken 5 | 1 1 1 1 1 . . . Scrap Searched 2 | . . 1 . 1 . . . Spaces Dug 44 | . . . . 17 2 10 15 Terrain Destroyed 286 | . 9 6 . 83 13 35 140 Melee 12 | . . . . . 2 6 4 Projectile 5 | . . . . . . 3 2 AOE 269 | . 9 6 . 83 11 26 134 Terrain Rammed . | . . . . . . . . Walls Destroyed . | . . . . . . . . Machines Disabled . | . . . . . . . . Actions | -11 -10 -10 -10 -9 -8 -8 -8 --------- Run | Yrd Mat Min Exi Min Mat Gar Mat Total 6186 | 86 1115 626 511 669 838 1989 352 Wait 354 | . 122 18 . . 110 90 14 Move 5160 | 62 892 576 511 621 598 1650 250 Hop . | . . . . . . . . Pick Up 69 | 6 24 3 . 3 13 19 1 Fast Attach 25 | 4 4 1 . 2 2 10 2 Attach 32 | 2 2 . . 6 7 9 6 Detach 3 | . . . . 1 . 1 1 Swap 69 | . 8 4 . 11 17 26 3 Drop 61 | . 17 3 . 2 14 23 2 Fire 263 | 12 46 21 . 23 73 65 23 Melee 131 | . . . . . 4 77 50 Ram . | . . . . . . . . Kick . | . . . . . . . . Crush . | . . . . . . . . Escape Stasis . | . . . . . . . . Rewire 19 | . . . . . . 19 . Trap . | . . . . . . . . Miscellaneous . | . . . . . . . . Route ------- -11/Scrapyard -10/Materials (discovered 5 exits: [*Mat x3] / *Min / [*Sub]) -10/Mines (discovered 4 exits: [*Mat x2] / *Exi / [*Sub]) -10/Exiles (discovered 2 exits: [*Min x2]) -9/Mines (discovered 2 exits: *Mat x2) -8/Materials (discovered 3 exits: Fac x2 / Gar) -8/Garrison (discovered 3 exits: *Mat x3) -8/Materials History --------- Turn | Location | Event 14 | -11/Scrapyard | Discovered new exit (range 14) 136 | -11/Scrapyard | Entered Materials 302 | -10/Materials | Discovered new exit (range 12) 311 | -10/Materials | Central database locked down 318 | -10/Materials | Build established: Mutant 641 | -10/Materials | Discovered new exit (range 11) 865 | -10/Materials | Discovered new exit (range 9) 1086 | -10/Materials | Discovered new exit (range 14) 1386 | -10/Materials | Repaired Autogun 1479 | -10/Materials | Discovered new exit (range 11) 1867 | -10/Materials | Entered Mines 2011 | -10/Mines | Met a Derelict who couldn't figure out how to use a Trap Extractor 2081 | -10/Mines | Discovered new exit (range 14) 2110 | -10/Mines | Found the Drone Emporium 2112 | -10/Mines | Learned location of 1 exit from Materials 2117 | -10/Mines | Found Prototype Device 2354 | -10/Mines | Discovered new exit (range 5) 2375 | -10/Mines | Discovered new exit (range 5) 2602 | -10/Mines | Learned Materials stockpile data 2718 | -10/Mines | Deemed a non-threat by the Exiles lab entrance 2718 | -10/Mines | Discovered new exit (range 6) 2878 | -10/Mines | Entered Exiles 2878 | -10/Exiles | Found Exiles lab abandoned 2904 | -10/Exiles | Discovered new exit (range 15) 3683 | -10/Exiles | Discovered new exit (range 10) 3696 | -10/Exiles | Entered Mines 3698 | -9/Mines | Met a Derelict bent on vengeance 3887 | -9/Mines | Received a Rocket Launcher from a helpful Derelict 3935 | -9/Mines | Discovered new exit (range 10) 3961 | -9/Mines | Assembled infested the area 4006 | -9/Mines | Destroyed 8 combat bots 4011 | -9/Mines | Core integrity fell below 50% 4020 | -9/Mines | Core integrity fell below 20% 4027 | -9/Mines | Identified Sensor Drone Bay 4056 | -9/Mines | Learned Materials terminal intel 4057 | -9/Mines | Lost 6 parts (1p3n2w) 4373 | -9/Mines | Build established: Scavenger-Mutant 4460 | -9/Mines | Discovered new exit (range 13) 4527 | -9/Mines | Received a Mining Laser from a helpful Derelict 4924 | -9/Mines | Entered Materials 4924 | -8/Materials | Evolved 4 slots: Propulsion x1, Utility x2, Weapon x1 4925 | -8/Materials | Identified exit to Factory 4928 | -8/Materials | Loaded intel: 12 terminal locations 5841 | -8/Materials | Build established: Tank 6179 | -8/Materials | Garrison activated, responded to threat 6228 | -8/Materials | Identified exit to Garrison 6230 | -8/Materials | Entered Garrison 6456 | -8/Garrison | Triggered checkpoint 6523 | -8/Garrison | Garrison Relay disabled 6605 | -8/Garrison | Build established: Mutant 6752 | -8/Garrison | Triggered checkpoint 6766 | -8/Garrison | Triggered checkpoint 7070 | -8/Garrison | Garrison Relay disabled 7333 | -8/Garrison | Discovered new exit (range 15) 7468 | -8/Garrison | Discovered new exit (range 8) 7518 | -8/Garrison | Triggered checkpoint 7572 | -8/Garrison | Garrison Relay disabled 7600 | -8/Garrison | Core integrity fell below 50% 7690 | -8/Garrison | Triggered checkpoint 7785 | -8/Garrison | Lost 6 parts (1p1n3u1w) 7960 | -8/Garrison | Triggered checkpoint 8026 | -8/Garrison | Garrison Relay disabled 8092 | -8/Garrison | Triggered checkpoint 8098 | -8/Garrison | Discovered new exit (range 13) 8117 | -8/Garrison | Discovered new exit (range 47) 8117 | -8/Garrison | Discovered new exit (range 12) 8117 | -8/Garrison | Discovered new exit (range 29) 8592 | -8/Garrison | Installed Relay Interface Framework 8666 | -8/Garrison | Core integrity fell below 20% 8804 | -8/Garrison | Identified exit to Materials 9465 | -8/Garrison | Entered Materials 9465 | -8/Materials | Accompanied by 3 allies 9865 | -8/Materials | First assault squad dispatched 10249 | -8/Materials | Destroyed by H-61 Shepherd with Heavy Assault Cannon Last Messages --------------- 10186_ System corrupted: Matter fused (-9). 10202_ System corrupted: Hvy. Missile Launcher failed to launch. 10202_ Adv. Treads destroyed. 10202_ Destroyed Adv. Treads. 10202_ K-01 Serf destroyed. 10204_ The unstable cave ceiling collapses. 10206_ Y-45 Defender destroyed. 10208_ System corrupted: Matter fused (-7). 10210_ The unstable cave ceiling collapses. 10227_ W-25 Informer sends out distress signal. 10231_ Acquired 2 matter. 10236_ Acquired Hvy. Flail. 10237_ Slug penetrates Wall. 10237_ Hvy. Missile Launcher destroyed. 10237_ Critical hit (Blast). 10242_ The unstable cave ceiling collapses. 10245_ Imp. Medium Armor Plating destroyed. 10245_ Hrd. Heavy Armor Plating destroyed. 10245_ Critical hit (Burn: +37). 10248_ The unstable cave ceiling collapses. Map ----- +----------------------------------------------------+ | ?????????????????????????????? ??????## | | ??????????????????????????????? ????# % | | ???????????????????????????????""" ??## | | ???????????????????????????????""" ## ## | | ???????????????????????????????""" % | | ??????????????????????????? | | ??????????????????????????? | | ????????????????????????????###### =[* | | ?????????????????????????????????####### =*%[!# | | ??????????????????????????????????###### ==[ | | ???????????????????????????????????????# = % | | ???????????????????????????????????????# # | | ???????????????????????????????????????# | | ????????????????????????????????######## ## | | ????????????????????????????????# # | | ????????????????????????????????# ! # | | ????????????????????????????????# #?# | | ????????????????????????????????# #?## | | ????????????????????????????????# #??# | | ?????????????????????????????????? ???# | | ????????????????##############??####+###### ^ | | ????????????????#! #??#!=* | | ????????????????# """"" #??# === | | ????????????????# """"""""" #??# = % | | ????????????????# """ """ #?## ############# | | ????????????????# @ ### #??????????# | | ????????????????### #% %### #??????????# | | ???????????????#;;; ;# #??????????# | | ??????????# H % = #??????????# | | ??????????# % % #??????????# | | ??????????# Y #??????????# | | ??????????# ###### # # # # #??????????? | | ??????????#???????## ##########??????????? | | ??????????????????# # # #???????????????????? | | ??????????????????###########???????????????????? | | ????????????????????????????????????????????????? | | ????????????????????????????????????????????????? | | ????????????????????????????????????????????????? | | ?????????????????????????????????????????????????? | | ?????????????????????????????????????????????????? | | ?????????????????????????????????????????????????? | | ?????????????????????????????????????????????????? | | ?????????????????????????????????????????????????? | | ?????????????????????????????????????????????????? | | ?????????????????????????????????????????????????? | | ?????????????????????????????????????????????????? | | ?????????????????????????????????????????????????? | | ?????????????????????????????????????????????????? | | ?????????????????????????????????????????????????? | | ?????????????????????????????????????????????????? | +----------------------------------------------------+ Best States ------------- Heat Dissipation 41 Energy Generation 19 Energy Capacity 315 Matter Stores 300 Matter Capacity 300 Sight Range 16 Terrain Scan Density 10 ECM Strength 1 Jamming Range 14 Armor Coverage 825 Resistance: KI 25 Evasion (%) 40 Recoil Reduction 3 Item Schematics ----------------- Imp. EM Shotgun | -8/Materials | Scanalyzed Maul | -8/Materials | Scanalyzed Signal Interpreter | -8/Materials | Scanalyzed Autogun | -8/Materials | Scanalyzed Mni. Grenade Launcher | -8/Materials | Scanalyzed Hrd. Heavy Armor Plating | -8/Materials | Scanalyzed Robot Schematics ------------------ None Fabricated ------------ Nothing Alien Tech Used ----------------- None Achievements -------------- A New Friend Challenges ------------ None Game ------ Seed NodeAngularClaws Manual? 0 Play Time 01:41:44 Cumulative 92.1 hours Start 2024.08.02 @ 21:23:35 End 2024.08.02 @ 23:29:56 Sessions 1 Manual Loads 0 Difficulty Rogue Special Mode None Game No. 91 Rogue 91 Adventurer 0 Explorer 0 Win Type - Total 0 Types 0/0/0/0/0/0/0/0/0 Lore% 43 Gallery% 55 Achievement% 41 Wizard Run 0 Options --------- Layout 0 ASCII 0 Keyboard 0 Movement Mouse Keybinds 0 Fullscreen 2 Font 24/Smallcaps Map View 183x50 Zoom Use 1% Tactical HUD 1 Map Filters NONE Filters NONE Steam 0 RUN: 09967232-9bb8-4ac3-88c3-b245a5be8aa3